bitfinex/quotes_SOLUSD_20251204
["timestamp","ask_amount","ask_price","bid_price","bid_amount"]
[1764867848356,4.47994876,142.58,142.55,0.67]
[1764867848755,11.49357413,142.58,142.55,0.67]
[1764867849068,11.49357413,142.58,142.54,14.85542834]
[1764867849069,4.47994876,142.56,142.54,0.1]
[1764867849372,4.47994876,142.55,142.54,0.1]
[1764867849754,4.47994876,142.55,142.54,0.77]
[1764867849954,4.47994876,142.56,142.54,0.77]
[1764867850162,4.47994876,142.56,142.54,0.1]
[1764867850572,4.47994876,142.56,142.54,0.77]
[1764867850875,11.49457246,142.56,142.54,0.77]
[1764867851375,11.49457246,142.56,142.54,0.1]
[1764867851685,4.47994876,142.55,142.54,0.1]
[1764867852051,12.87994876,142.55,142.54,0.1]
[1764867852980,19.89503118,142.55,142.54,0.1]
[1764867856369,28.7049761,142.55,142.54,0.1]
[1764867856758,31.51426078,142.55,142.54,0.1]
[1764867858464,8.80994492,142.54,142.53,0.1]
[1764867858666,34.77870644,142.54,142.53,1e-08]
[1764867859269,32.83487571,142.53,142.52,1e-08]
[1764867859475,41.79477323,142.53,142.52,1e-08]
[1764867859669,37.31482447,142.53,142.52,1e-08]
[1764867859888,36.24487955,142.53,142.52,1e-08]
[1764867861484,49.53477323,142.53,142.52,1e-08]
[1764867862488,40.57487571,142.53,142.52,1e-08]
[1764867862672,49.53477323,142.53,142.52,1e-08]
[1764867863284,8.80994492,142.52,142.5,0.1]
[1764867863489,21.00694511,142.51,142.5,0.1]
[1764867863992,23.81701922,142.51,142.5,0.1]
[1764867864182,15.0070743,142.51,142.5,0.1]
[1764867864389,14.75705143,142.51,142.5,0.1]
[1764867864564,19.23700019,142.51,142.5,0.1]
[1764867865265,19.93700019,142.51,142.5,0.1]
[1764867866278,19.93700019,142.51,142.5,1e-08]
[1764867866279,28.74694511,142.51,142.5,1e-08]
[1764867866490,29.9477753,142.51,142.5,1e-08]
[1764867867789,25.81880892,142.5,142.49,1e-08]
[1764867868089,28.68931633,142.5,142.49,1e-08]
[1764867868662,36.44931633,142.5,142.49,1e-08]
[1764867869789,46.27732917,142.5,142.49,1e-08]
[1764867871101,9.50994492,142.49,142.48,1e-08]
[1764867871389,12.38045233,142.49,142.48,1e-08]
[1764867871785,19.39848868,142.49,142.48,1e-08]
[1764867872167,16.308864,142.46,142.45,0.1]
[1764867872373,26.93937141,142.46,142.45,0.1]
[1764867873169,29.75023539,142.46,142.45,0.1]
[1764867873374,30.45023539,142.46,142.45,0.1]
[1764867874293,37.46974963,142.46,142.45,0.1]
[1764867874489,33.95888565,142.46,142.45,0.1]
[1764867874893,37.46974963,142.46,142.45,0.1]
[1764867875083,36.76974963,142.46,142.45,0.1]
[1764867875398,37.46974963,142.46,142.45,0.1]
[1764867875794,8.80994492,142.45,142.43,0.1]
[1764867875974,7.76,142.44,142.43,0.1]
[1764867876311,17.65100726,142.44,142.43,0.1]
[1764867876492,18.35100726,142.44,142.43,0.1]
[1764867876677,27.16095218,142.44,142.43,0.1]
[1764867877170,26.46095218,142.44,142.43,0.1]
[1764867878278,14.78049985,142.44,142.43,0.1]
[1764867878484,17.65100726,142.44,142.43,0.1]
[1764867879493,9.89100726,142.44,142.43,0.1]
[1764867879797,18.35100726,142.44,142.43,0.1]
[1764867880396,17.65100726,142.44,142.43,0.1]
[1764867880596,27.16095218,142.44,142.43,0.1]
[1764867881182,17.65100726,142.44,142.43,0.1]
[1764867881887,18.35100726,142.44,142.43,0.1]
[1764867882401,17.65100726,142.44,142.43,0.1]
[1764867882699,34.26443077,142.44,142.43,0.1]
[1764867883201,27.98931633,142.42,142.41,0.1]
[1764867883398,35.74931633,142.42,142.41,0.1]
[1764867883696,19.17937141,142.42,142.41,0.76]
[1764867883894,33.96085715,142.42,142.41,0.1]
[1764867884597,34.64085715,142.42,142.41,0.1]
[1764867884901,43.45080207,142.42,142.41,0.1]
[1764867886409,42.77080207,142.42,142.41,0.1]
[1764867887103,43.45080207,142.42,142.41,0.1]
[1764867887998,40.58029466,142.42,142.41,0.1]
[1764867888310,42.77080207,142.42,142.41,0.1]
[1764867888610,43.45080207,142.42,142.41,0.1]
[1764867888976,43.45080207,142.42,142.41,1e-08]
[1764867889393,42.77080207,142.42,142.41,1e-08]
[1764867889702,33.96085715,142.42,142.41,1e-08]
[1764867890778,7.02115461,142.43,142.41,0.66000001]
[1764867891002,9.89120235,142.44,142.41,0.66000001]
[1764867891807,7.02069494,142.44,142.41,0.66000001]
[1764867891999,9.89120235,142.44,142.41,0.66000001]
[1764867892802,7.02069494,142.44,142.41,0.66000001]
[1764867893006,9.83058251,142.46,142.42,2.87050741]
[1764867893207,7.01952099,142.46,142.42,2.87050741]
[1764867893508,14.77916501,142.47,142.43,3.53050741]
[1764867893693,14.77916501,142.47,142.44,0.66]
[1764867893895,2.87050741,142.48,142.44,3.53050741]
[1764867894513,14.77844518,142.49,142.45,0.66]
[1764867894715,2.87050741,142.48,142.45,0.66]
[1764867896912,14.77844518,142.49,142.45,0.66]
[1764867897115,2.87050741,142.48,142.45,0.66]
[1764867898210,14.77844518,142.49,142.45,3.53050741]
[1764867898418,17.64895259,142.49,142.46,0.66]
[1764867898611,2.87050741,142.48,142.46,0.66]
[1764867898917,2.87050741,142.47,142.46,0.66]
[1764867899212,9.88952895,142.47,142.46,0.66]
[1764867900811,24.068864,142.49,142.46,0.66]
[1764867900991,24.068864,142.49,142.46,3.53050741]
[1764867901189,9.88755884,142.51,142.46,10.54993399]
[1764867901400,2.87050741,142.5,142.47,0.66]
[1764867901593,2.87050741,142.49,142.47,0.66]
[1764867901903,2.87050741,142.48,142.45,0.66]
[1764867902401,7.76,142.49,142.45,0.66]
[1764867902402,2.87050741,142.49,142.45,0.66]
[1764867902619,17.64861893,142.49,142.45,7.67989784]
[1764867903119,17.64861893,142.49,142.46,0.66]
[1764867903704,7.01791277,142.5,142.46,7.67947002]
[1764867903895,14.77791277,142.5,142.46,10.54997743]
[1764867904095,14.77791277,142.5,142.47,0.66]
[1764867904794,17.64842018,142.5,142.47,0.66]
[1764867904995,2.87050741,142.48,142.45,0.66]
[1764867905195,2.87050741,142.47,142.46,0.66]
[1764867905811,8.44,142.47,142.42,0.66]
[1764867906012,8.44,142.47,142.43,0.66]
[1764867906013,2.87050741,142.45,142.43,0.66]
[1764867906316,2.87050741,142.46,142.43,0.66]
[1764867906501,2.87050741,142.45,142.43,0.66]
[1764867907009,9.89086461,142.45,142.43,0.66]
[1764867907517,7.0203572,142.45,142.43,0.66]
[1764867908022,10.63050741,142.47,142.43,0.66]
[1764867908821,7.76,142.47,142.43,0.66]
[1764867909020,2.87050741,142.46,142.43,0.66]
[1764867909213,2.87050741,142.45,142.43,0.66]
[1764867910502,9.89044519,142.46,142.43,0.66]
[1764867910703,17.64967054,142.47,142.43,0.66]
[1764867911209,10.63050741,142.47,142.43,7.68084998]
[1764867911598,10.63050741,142.47,142.44,0.66]
[1764867911798,2.87050741,142.48,142.44,0.66]
[1764867912000,17.64869385,142.49,142.44,3.53050741]
[1764867912305,2.87050741,142.48,142.44,7.68017185]
[1764867912625,2.87050741,142.48,142.45,0.66]
[1764867912995,2.87050741,142.47,142.45,0.66]
[1764867913221,2.87050741,142.46,142.45,0.66]
[1764867913706,2.87050741,142.46,142.43,7.70093662]
[1764867913890,2.87050741,142.47,142.43,7.70093662]
[1764867914092,2.87050741,142.48,142.44,7.70046361]
[1764867914295,17.64869385,142.49,142.44,10.57097102]
[1764867914606,9.88869385,142.49,142.45,0.68]
[1764867915522,9.88869385,142.49,142.45,7.69996921]
[1764867915904,9.88869385,142.49,142.46,0.68]
[1764867916104,2.87050741,142.49,142.46,0.68]
[1764867917028,17.64817867,142.5,142.46,0.68]
[1764867917420,17.64817867,142.5,142.46,7.69911097]
[1764867917823,17.64817867,142.5,142.47,0.68]
[1764867918209,9.88817867,142.5,142.47,0.68]
[1764867919226,9.88817867,142.5,142.47,3.55050741]
[1764867919227,7.01767126,142.5,142.47,3.55050741]
[1764867920318,7.01767126,142.5,142.47,0.68]
[1764867921342,10.54817867,142.5,142.47,0.68]
[1764867921644,10.54817867,142.5,142.45,10.57034687]
[1764867921828,10.54817867,142.5,142.46,0.68]
[1764867922021,2.87050741,142.48,142.39,35.11324598]
[1764867922210,0.66,142.49,142.43,0.68]
[1764867922211,10.63050741,142.47,142.43,0.68]
[1764867922610,11.29050741,142.47,142.43,0.68]
[1764867923213,8.42,142.47,142.43,0.68]
[1764867923412,0.66,142.46,142.41,26.88122002]
[1764867923817,0.66,142.46,142.42,0.68]
[1764867924035,10.55043226,142.46,142.42,0.68]
[1764867924437,14.77922926,142.47,142.44,2.87050741]
[1764867924645,7.76,142.47,142.44,2.87050741]
[1764867924825,0.66,142.46,142.42,0.68]
[1764867925818,10.55036354,142.46,142.42,0.68]
[1764867926137,28.09914916,142.46,142.41,1e-08]
[1764867926346,3.53050741,142.45,142.41,0.68000001]
[1764867926513,0.66,142.45,142.41,0.68000001]
[1764867926943,8.42,142.44,142.41,1e-08]
[1764867927229,11.29050741,142.44,142.41,1e-08]
[1764867927410,10.63050741,142.44,142.41,1e-08]
[1764867927611,3.53050741,142.43,142.41,1e-08]
[1764867927818,28.09914916,142.46,142.42,0.68]
[1764867928033,15.44045046,142.45,142.41,3.55050742]
[1764867928233,18.31095787,142.45,142.41,0.68000001]
[1764867928413,15.44045046,142.45,142.41,0.68000001]
[1764867928845,15.44045046,142.45,142.41,5.16710416]
[1764867929140,0.66,142.44,142.41,5.16710416]
[1764867931017,7.68056403,142.44,142.41,0.68000001]
[1764867931739,7.02056403,142.44,142.41,0.68000001]
[1764867931943,7.02056403,142.44,142.41,5.16710416]
[1764867932938,14.78008888,142.45,142.42,0.68]
[1764867933546,15.44008888,142.45,142.42,0.68]
[1764867933846,19.92719303,142.45,142.41,0.68000001]
[1764867934218,5.14710415,142.44,142.41,1e-08]
[1764867934943,36.81721058,142.45,142.41,0.68000001]
[1764867935141,15.44008888,142.45,142.41,12.18906419]
[1764867935439,15.44008888,142.45,142.41,7.70196004]
[1764867935644,15.44008888,142.45,142.42,0.68]
[1764867937042,14.78008888,142.45,142.42,0.68]
[1764867937243,7.01968156,142.46,142.42,5.16710415]
[1764867937444,7.01968156,142.46,142.41,1e-08]
[1764867937445,16.308864,142.42,142.41,1e-08]
[1764867937631,28.55596815,142.42,142.41,1e-08]
[1764867937825,29.21596815,142.42,142.41,1e-08]
[1764867938533,31.75034974,142.42,142.41,1e-08]
[1764867938718,36.23745389,142.42,142.41,1e-08]
[1764867940554,45.04739881,142.42,142.41,1e-08]
[1764867940729,37.28739881,142.42,142.41,1e-08]
[1764867940927,47.85964614,142.42,142.41,1e-08]
[1764867943044,45.04739881,142.42,142.41,1e-08]
[1764867943350,47.85944844,142.42,142.41,1e-08]
[1764867943555,11.50858989,142.42,142.41,1e-08]
[1764867944052,27.81745389,142.42,142.41,1e-08]
[1764867944250,7.02148574,142.42,142.41,1e-08]
[1764867945153,11.50858989,142.42,142.41,1e-08]
[1764867945351,12.17858989,142.42,142.41,1e-08]
[1764867946744,7.02148574,142.42,142.41,1e-08]
[1764867948232,14.78119985,142.43,142.41,1e-08]
[1764867948439,14.78119985,142.43,142.41,0.72000001]
[1764867948957,14.78119985,142.43,142.41,1e-08]
[1764867949177,14.78119985,142.43,142.41,0.72000001]
[1764867949741,14.78119985,142.43,142.41,1e-08]
[1764867950735,14.78119985,142.43,142.41,0.72000001]
[1764867951845,7.76,142.43,142.41,0.72000001]
[1764867952159,7.76,142.43,142.41,5.20710416]
[1764867952457,14.78015903,142.45,142.41,12.22904347]
[1764867952662,14.78015903,142.45,142.42,0.72]
[1764867955477,7.76,142.45,142.42,12.2285564]
[1764867955781,7.02049985,142.44,142.41,0.72000001]
[1764867955980,11.507604,142.44,142.41,0.72000001]
[1764867956167,7.02049985,142.44,142.41,0.72000001]
[1764867956771,32.33816929,142.45,142.42,4.48710415]
[1764867956970,14.7800587,142.45,142.43,0.72]
[1764867957359,7.76,142.45,142.43,0.72]
[1764867957677,7.01969202,142.46,142.43,5.20710415]
[1764867957861,25.11880892,142.48,142.43,5.20710415]
[1764867957862,26.28757831,142.47,142.43,5.20710415]
[1764867958063,14.77912829,142.47,142.44,0.72]
[1764867961870,19.93623244,142.47,142.43,0.72]
[1764867962070,37.48378631,142.47,142.43,0.72]
[1764867962887,44.50555487,142.47,142.43,0.72]
[1764867963383,32.99668216,142.47,142.43,0.72]
[1764867963562,44.50555487,142.47,142.43,0.72]
[1764867963958,4.48710415,142.45,142.41,0.72000001]
[1764867964212,4.48710415,142.44,142.41,0.72000001]
[1764867964377,5.15710415,142.44,142.41,0.72000001]
[1764867964693,0.67,142.44,142.41,0.72000001]
[1764867964897,4.48710415,142.43,142.41,1e-08]
[1764867965062,5.15710415,142.44,142.41,0.72000001]
[1764867965260,12.24710415,142.45,142.41,0.72000001]
[1764867965465,12.91710415,142.45,142.41,0.72000001]
[1764867965672,7.02049985,142.44,142.41,0.72000001]
[1764867965987,12.177604,142.44,142.41,1e-08]
[1764867966190,12.177604,142.44,142.41,0.72000001]
[1764867966667,12.177604,142.44,142.41,1e-08]
[1764867966867,11.507604,142.44,142.41,1e-08]
[1764867967090,0.67,142.43,142.41,1e-08]
[1764867967274,12.24710415,142.42,142.41,1e-08]
[1764867967675,19.93858989,142.42,142.41,1e-08]
[1764867968982,14.78148574,142.42,142.41,1e-08]
[1764867969193,28.74853481,142.42,142.41,1e-08]
[1764867969693,35.87230604,142.42,142.41,1e-08]
[1764867970499,14.14525697,142.42,142.41,1e-08]
[1764867970794,14.78148574,142.42,142.41,1e-08]
[1764867971265,7.02148574,142.42,142.41,0.72000001]
[1764867971469,11.50828248,142.43,142.41,0.72000001]
[1764867971781,11.50828248,142.43,142.41,1e-08]
[1764867972480,7.02117833,142.43,142.41,1e-08]
[1764867972686,11.50828248,142.43,142.41,1e-08]
[1764867973879,7.02117833,142.43,142.41,1e-08]
[1764867974093,11.50828248,142.43,142.41,1e-08]
[1764867974595,25.31124964,142.44,142.42,0.7]
[1764867974596,7.76,142.44,142.42,0.7]
[1764867974772,18.22657973,142.48,142.42,5.18710415]
[1764867975092,12.24710415,142.47,142.42,5.18710415]
[1764867975290,4.48710415,142.46,142.43,0.7]
[1764867976495,32.32657541,142.47,142.43,0.7]
[1764867976700,4.48710415,142.46,142.43,0.7]
[1764867977200,7.02000702,142.45,142.43,0.7]
[1764867978691,25.98755387,142.47,142.43,0.7]
[1764867978692,12.24710415,142.47,142.43,0.7]
[1764867979000,14.77937733,142.47,142.43,7.72091434]
[1764867979707,14.77937733,142.47,142.44,0.7]
[1764867980278,11.50648148,142.47,142.44,0.7]
[1764867980596,7.76,142.48,142.44,12.2074677]
[1764867980909,7.01822693,142.49,142.45,4.48710415]
[1764867981092,7.01822693,142.49,142.45,5.18710415]
[1764867981400,7.01822693,142.49,142.46,0.7]
[1764867982012,7.76,142.5,142.46,12.20655636]
[1764867982179,14.77772583,142.5,142.47,4.48710415]
[1764867982381,14.77772583,142.5,142.47,5.18710415]
[1764867982581,14.77772583,142.5,142.48,0.7]
[1764867984117,7.76,142.5,142.48,0.7]
[1764867984286,7.0172275,142.51,142.48,0.7]
[1764867987415,4.48710415,142.49,142.45,7.71958135]
[1764867987618,8.44,142.5,142.45,0.7]
[1764867987822,5.16710415,142.49,142.46,0.7]
[1764867987984,4.48710415,142.47,142.43,0.7]
[1764867988184,7.76,142.48,142.44,0.7]
[1764867988185,12.24710415,142.48,142.44,0.7]
[1764867988411,12.92710415,142.48,142.44,0.7]
[1764867988728,5.16710415,142.47,142.44,0.7]
[1764867989288,4.48710415,142.47,142.44,0.7]
[1764867989511,7.01951424,142.46,142.44,0.7]
[1764867990500,7.01951424,142.46,142.43,0.7]
[1764867992818,7.019245,142.47,142.43,3.57109706]
[1764867993227,7.019245,142.47,142.44,0.7]
[1764867994312,2.87109706,142.46,142.44,0.7]
[1764867995126,17.65034206,142.47,142.44,0.7]
[1764867996616,2.87109706,142.45,142.41,1e-08]
[1764867996923,2.87109706,142.45,142.42,0.7]
[1764867997821,7.02049985,142.44,142.42,0.7]
[1764867998400,7.02049985,142.44,142.41,1e-08]
[1764867998606,10.57159691,142.44,142.41,0.70000001]
[1764867998805,9.89159691,142.44,142.41,0.70000001]
[1764867999039,27.44284655,142.44,142.41,0.70000001]
[1764867999504,24.57174949,142.44,142.41,0.70000001]
[1764867999834,38.7335728,142.46,142.41,3.57109707]
[1764868000018,17.65061135,142.46,142.42,7.02147988]
[1764868000217,17.65061135,142.46,142.42,7.72147988]
[1764868000421,17.65061135,142.46,142.43,0.7]
[1764868002118,14.77951429,142.46,142.43,0.7]
[1764868002511,7.01951429,142.46,142.43,0.7]
[1764868003312,9.89061135,142.46,142.43,0.7]
[1764868004208,2.87109706,142.45,142.41,7.02192726]
[1764868004408,2.87109706,142.45,142.42,0.69]
[1764868004732,10.60061135,142.46,142.42,0.69]
[1764868004908,3.58109706,142.45,142.42,0.69]
[1764868006639,7.02049985,142.44,142.42,0.69]
[1764868007337,7.02049985,142.44,142.41,0.69000001]
[1764868007533,7.02049985,142.44,142.42,0.69]
[1764868008005,7.02049985,142.44,142.41,0.69000001]
[1764868008205,9.89159691,142.44,142.41,0.69000001]
[1764868009328,25.28174949,142.44,142.41,1e-08]
[1764868009525,28.15284655,142.44,142.41,0.69000001]
[1764868009935,27.44284655,142.44,142.41,0.69000001]
[1764868010433,28.15284655,142.44,142.41,0.69000001]
[1764868011915,27.44284655,142.44,142.41,0.69000001]
[1764868012610,28.15284655,142.44,142.41,0.69000001]
[1764868014825,9.89159691,142.44,142.41,0.69000001]
[1764868015722,7.02049985,142.44,142.41,0.69000001]
[1764868015921,20.52143996,142.47,142.42,2.87109706]
[1764868016153,20.52143996,142.47,142.43,2.87109706]
[1764868016154,7.01924584,142.47,142.43,2.87109706]
[1764868016454,14.77865489,142.48,142.44,2.87109706]
[1764868016795,9.88975195,142.48,142.44,0.69]
[1764868017045,7.01865489,142.48,142.45,0.69]
[1764868017934,9.88975195,142.48,142.45,0.69]
[1764868018118,2.87109706,142.46,142.42,15.47122055]
[1764868018312,3.58109706,142.47,142.42,18.34231761]
[1764868018515,3.58109706,142.47,142.43,0.69]
[1764868021350,28.15112163,142.45,142.41,0.69000001]
[1764868021858,3.58109706,142.44,142.41,1e-08]
[1764868022056,0.71,142.44,142.41,0.69000001]
[1764868022949,7.02099276,142.43,142.41,0.69000001]
[1764868023149,0.71,142.44,142.41,0.69000001]
[1764868023150,7.02068556,142.44,142.41,0.69000001]
[1764868023348,37.43802176,142.47,142.42,2.87109706]
[1764868023547,47.3314552,142.47,142.43,0.69]
[1764868024337,7.01961358,142.46,142.43,0.69]
[1764868024542,7.01961358,142.46,142.41,10.5830282]
[1764868024543,10.60071064,142.46,142.41,10.5830282]
[1764868024743,9.89071064,142.46,142.42,0.69]
[1764868024958,7.01961358,142.46,142.42,7.71136821]
[1764868025338,7.01961358,142.46,142.43,0.69]
[1764868026061,9.89071064,142.46,142.43,0.69]
[1764868026862,10.60071064,142.46,142.43,0.69]
[1764868027061,3.58109706,142.45,142.41,1e-08]
[1764868027264,19.17996106,142.42,142.41,1e-08]
[1764868027453,16.308864,142.42,142.41,1e-08]
[1764868027655,17.018864,142.42,142.41,1e-08]
[1764868027853,19.88996106,142.42,142.41,1e-08]
[1764868028674,26.9114468,142.42,142.41,1e-08]
[1764868031354,29.7231011,142.42,142.41,1e-08]
[1764868034175,29.0131011,142.42,142.41,1e-08]
[1764868038859,29.6631011,142.42,142.41,1e-08]
[1764868041971,7.02121181,142.43,142.41,0.72000001]
[1764868042561,9.89230887,142.43,142.41,0.72000001]
[1764868042976,9.89162171,142.44,142.41,0.72000001]
[1764868043176,2.81106152,142.45,142.41,10.61285745]
[1764868043559,7.01983862,142.46,142.42,0.72]
[1764868044079,9.89093568,142.46,142.42,0.72]
[1764868044550,9.89093568,142.46,142.42,7.741476]
[1764868044979,9.89093568,142.46,142.43,0.72]
[1764868045352,2.87109706,142.46,142.43,0.72]
[1764868045752,8.80994492,142.51,142.43,0.72]
[1764868045753,17.54433974,142.5,142.45,2.87109706]
[1764868045952,36.7243008,142.5,142.45,2.87109706]
[1764868046175,20.4154368,142.5,142.46,0.72]
[1764868046680,31.09034,142.51,142.46,0.72]
[1764868046874,7.01712075,142.51,142.47,2.87109706]
[1764868047076,16.308864,142.5,142.47,2.87109706]
[1764868047383,16.308864,142.5,142.48,0.72]
[1764868048079,9.88778502,142.52,142.48,0.72]
[1764868048580,14.77626756,142.53,142.48,3.59109706]
[1764868048783,17.64736462,142.53,142.48,10.60921385]
[1764868048964,7.01626756,142.53,142.49,3.59109706]
[1764868049487,7.01626756,142.53,142.5,0.72]
[1764868049865,9.88736462,142.53,142.5,0.72]
[1764868050581,11.49831282,142.53,142.5,0.72]
[1764868050786,7.01626756,142.53,142.5,0.72]
[1764868051081,4.48204526,142.56,142.52,4.48204526]
[1764868051585,46.28652663,142.57,142.53,0.72]
[1764868051762,7.01474779,142.56,142.53,5.20204526]
[1764868051969,0.2,142.57,142.55,4.48204526]
[1764868052350,0.2,142.57,142.56,0.72]
[1764868052587,12.34614359,142.57,142.52,0.72]
[1764868052763,4.48204526,142.55,142.52,0.72]
[1764868053283,4.48204526,142.54,142.5,0.72]
[1764868053457,4.48204526,142.53,142.51,0.72]
[1764868053662,4.48204526,142.53,142.48,12.22025061]
[1764868053862,11.49851753,142.53,142.49,0.72]
[1764868054664,7.01647227,142.53,142.49,12.21999192]
[1764868055281,7.01647227,142.53,142.5,0.72]
[1764868057373,11.49761983,142.54,142.5,0.72]
[1764868057575,12.14761983,142.54,142.5,0.72]
[1764868059186,7.01557457,142.54,142.5,0.72]
[1764868059369,11.49761983,142.54,142.5,5.20204526]
[1764868059762,12.89204526,142.53,142.48,12.22039834]
[1764868060172,12.89204526,142.53,142.49,0.72]
[1764868060767,12.14860433,142.52,142.49,0.72]
[1764868061574,7.66655907,142.52,142.49,0.72]
[1764868061819,7.01655907,142.52,142.49,0.72]
[1764868062292,11.49860433,142.52,142.49,0.72]
[1764868062868,7.01655907,142.52,142.49,5.20204526]
[1764868063095,19.25828727,142.53,142.49,12.21998823]
[1764868063289,19.25828727,142.53,142.5,0.68]
[1764868063977,7.01624201,142.53,142.5,5.16204526]
[1764868064585,4.48204526,142.51,142.46,0.68]
[1764868064793,11.49992391,142.5,142.46,7.01938213]
[1764868064971,12.22204526,142.49,142.46,0.68]
[1764868066575,0.71,142.48,142.44,7.70042289]
[1764868066781,5.19204526,142.48,142.45,0.68]
[1764868066998,4.48204526,142.48,142.45,0.68]
[1764868067898,11.50073544,142.48,142.45,0.68]
[1764868068903,7.01869018,142.48,142.45,0.68]
[1764868069078,11.50073544,142.48,142.44,11.50246815]
[1764868069274,11.50073544,142.48,142.45,0.68]
[1764868069595,11.50073544,142.48,142.44,0.68]
[1764868069596,4.48204526,142.47,142.44,0.68]
[1764868069804,4.48204526,142.46,142.44,0.68]
[1764868070100,19.24139145,142.47,142.44,0.68]
[1764868070301,4.48204526,142.46,142.42,7.7012817]
[1764868070510,4.48204526,142.45,142.42,0.68]
[1764868071004,5.19204526,142.46,142.42,0.68]
[1764868071303,4.48204526,142.46,142.42,0.68]
[1764868071680,5.19204526,142.46,142.42,0.68]
[1764868072093,7.02000702,142.45,142.42,0.68]
[1764868072291,7.73000702,142.45,142.42,0.68]
[1764868072502,7.76,142.44,142.42,0.68]
[1764868074089,14.78051921,142.44,142.42,0.68]
[1764868074903,19.26256447,142.44,142.41,1e-08]
[1764868075203,19.26256447,142.44,142.41,0.68000001]
[1764868075204,19.97256447,142.44,142.41,0.68000001]
[1764868075710,7.76,142.43,142.41,7.70196108]
[1764868076193,7.76,142.43,142.42,7.70148574]
[1764868076590,7.76,142.43,142.42,0.68]
[1764868077009,7.76,142.43,142.41,1e-08]
[1764868077189,7.76,142.43,142.41,0.68000001]
[1764868077903,14.7809938,142.43,142.41,0.68000001]
[1764868078085,19.26303906,142.43,142.41,0.68000001]
[1764868078782,7.76,142.43,142.41,0.68000001]
[1764868079230,4.48204526,142.44,142.41,7.70179787]
[1764868079381,12.24204526,142.44,142.41,7.02179787]
[1764868079709,12.24204526,142.44,142.42,0.68]
[1764868079906,7.01951424,142.46,142.42,0.68]
[1764868080111,12.24204526,142.45,142.42,0.68]
[1764868080310,19.26218253,142.45,142.42,0.68]
[1764868080697,5.19204526,142.44,142.41,1e-08]
[1764868080912,5.19204526,142.44,142.41,0.68000001]
[1764868081109,4.48204526,142.42,142.41,1e-08]
[1764868081288,12.24204526,142.42,142.41,1e-08]
[1764868081688,7.76,142.42,142.41,1e-08]
[1764868082631,14.78148574,142.42,142.41,1e-08]
[1764868083315,19.263531,142.42,142.41,1e-08]
[1764868083819,19.973531,142.42,142.41,1e-08]
[1764868084494,19.263531,142.42,142.41,1e-08]
[1764868084710,14.78148574,142.42,142.41,1e-08]
[1764868084909,7.76,142.42,142.41,0.68000001]
[1764868085111,7.76,142.42,142.41,1e-08]
[1764868086719,7.76,142.42,142.41,0.68000001]
[1764868087609,14.78148574,142.42,142.41,1e-08]
[1764868087911,19.263531,142.42,142.41,1e-08]
[1764868088599,19.973531,142.42,142.41,1e-08]
[1764868088987,28.78347592,142.42,142.41,1e-08]
[1764868089191,31.59532787,142.42,142.41,1e-08]
[1764868090105,47.90419187,142.42,142.41,1e-08]
[1764868091488,43.42214661,142.42,142.41,1e-08]
[1764868091713,47.90419187,142.42,142.41,1e-08]
[1764868094630,27.11328261,142.42,142.41,1e-08]
[1764868094794,31.59532787,142.42,142.41,1e-08]
[1764868096094,19.35328261,142.42,142.41,1e-08]
[1764868096298,31.59532787,142.42,142.41,1e-08]
[1764868097530,7.02148574,142.42,142.41,0.68000001]
[1764868097700,19.263531,142.42,142.41,1e-08]
[1764868098002,35.572395,142.42,142.41,1e-08]
[1764868100826,31.09034974,142.42,142.41,0.68000001]
[1764868101019,35.572395,142.42,142.41,0.68000001]
[1764868101217,28.55090926,142.42,142.41,0.68000001]
[1764868101410,35.572395,142.42,142.41,1e-08]
[1764868101613,17.55177728,142.44,142.41,1e-08]
[1764868101803,12.24204526,142.44,142.41,0.68000001]
[1764868102004,7.76,142.44,142.41,0.68000001]
[1764868102202,4.48204526,142.42,142.41,0.68000001]
[1764868102506,12.24204526,142.42,142.41,1e-08]
[1764868102928,36.272395,142.42,142.41,1e-08]
[1764868103105,35.572395,142.42,142.41,1e-08]